Cogmind - Beta 16 @@@ ROGUE MODE // 2026.01.17 @ 14:49:35 Player: MAXX-P31 Result: Destroyed by S-27 Virus with Autogun Performance ------------- Evolutions (5) 2500 Regions Visited (16) 3200 Robots Destroyed (259) 1295 Value Destroyed (9168) 9168 Prototype IDs (20) 400 Alien Tech Used (0) 0 Bonus (2245) 2245 TOTAL SCORE: 18808 Bonus ------- High Alert Combat Kills 1713 Follower Combat Kills 244 Met Data Miner 300 Friendly Fire -12 Cogmind --------- Core Integrity 0/1000 Matter 125/300 Energy 99/100 System Corruption 10% Temperature Cool (0) Movement Core (50) Location -5/Upper Caves Parts ------- > --- POWER (2) -------- (None) > --- PROPULSION (4) --- (None) > --- UTILITY (8) ------ Improved Signal Interpreter Armor Integrity Analyzer > --- WEAPON (3) ------- (None) > --- INVENTORY (5) ---- Improved Cooling System Huge Storage Unit Energy Well (350) Improved Sensor Array Heavy Missile Launcher Peak State ------------ > --- POWER ------------ Angular Momentum Engine Micro Fission Core > --- PROPULSION ------- Advanced Treads Armored Medium Treads Heavy Treads > --- UTILITY ---------- Improved Cooling System Huge Storage Unit Energy Well Enhanced Optical Array Seismic Detector Advanced Targeting Computer Improved Medium Armor Plating Advanced Shield Generator > --- WEAPON ----------- Phase Cannon Heavy Plasma Cannon Neutron Cannon > --- INVENTORY -------- Light Angular Momentum Engine Light Treads Cryofiber Web Improved Cooling System Improved Coolant Injector Huge Storage Unit High-capacity Battery Large Matter Pod Improved Sensor Array Advanced Sensor Array Improved Particle Charger Hardened Heavy Armor Plating Improved Shock Absorption System Hardlight Generator Mapping Drone Bay Improved EM Pulse Cannon Proton Cannon Heavy Plasma Cannon Heavy Flak Cannon Mass Driver Enhanced Gauss Cannon Improved Grenade Launcher Heavy Missile Launcher Improved Plasma Cutter [Rating: 88] Favorites ----------- Power Cooled Ion Engine Engine Cooled Ion Engine Power Core Micro Fission Core Propulsion Light Treads Treads Light Treads Leg Multireflex Exoskeleton Utility Huge Storage Unit Device Seismic Detector Storage Huge Storage Unit Processor Advanced Targeting Computer Protection Improved Medium Armor Plating Weapon Plasma Cannon Energy Gun EM Pulse Gun Energy Cannon Plasma Cannon Ballistic Gun Assault Rifle Ballistic Cannon Improved Light Cannon Launcher Rocket Launcher Special Weapon Mining Laser Slashing Weapon Power Sword Build | -11 -10 -9 -8 -7 -7 -7 -7 -6 -6 -6 -6 -6 -5 -5 -5 -5 ------- Run | Yrd Mat Mat Mat Fac Low Low Zio Pro Fac Low Low Dat Pro Fac Upp Upp Slots Evolved 10 | . . 2 2 2 . . . . 2 . . . . 2 . . Power 1 | . . . . 1 . . . . . . . . . . . . Propulsion 2 | . . . 1 . . . . . . . . . . 1 . . Utility 6 | . . 2 1 1 . . . . 1 . . . . 1 . . Weapon 1 | . . . . . . . . . 1 . . . . . . . Parts Attached 119 | 7 5 13 24 12 9 1 . . 7 1 . . 10 28 . 2 Power 9 | 1 1 1 . 1 2 . . . . . . . . 3 . . Engine 8 | 1 1 1 . 1 2 . . . . . . . . 2 . . Core 1 | . . . . . . . . . . . . . . 1 . . Reactor . | . . . . . . . . . . . . . . . . . Propulsion 20 | 2 1 2 6 . . 1 . . 2 . . . 1 5 . . Treads 19 | 2 1 2 6 . . 1 . . 1 . . . 1 5 . . Leg 1 | . . . . . . . . . 1 . . . . . . . Wheel . | . . . . . . . . . . . . . . . . . Hover . | . . . . . . . . . . . . . . . . . Flight . | . . . . . . . . . . . . . . . . . Utility 52 | 2 . 6 11 7 5 . . . 3 . . . 4 12 . 2 Device 24 | 1 . 2 3 4 1 . . . 2 . . . 3 7 . 1 Storage 5 | 1 . 1 1 . . . . . . . . . . 2 . . Processor 6 | . . . . 1 2 . . . 1 . . . . 1 . 1 Hackware . | . . . . . . . . . . . . . . . . . Protection 17 | . . 3 7 2 2 . . . . . . . 1 2 . . Artifact . | . . . . . . . . . . . . . . . . . Weapon 38 | 2 3 4 7 4 2 . . . 2 1 . . 5 8 . . Energy Gun 1 | . 1 . . . . . . . . . . . . . . . Energy Cannon 19 | . . 1 3 4 2 . . . 2 1 . . 3 3 . . Ballistic Gun 4 | 2 . . 1 . . . . . . . . . 1 . . . Ballistic Cannon 6 | . 2 1 1 . . . . . . . . . . 2 . . Launcher 5 | . . 1 2 . . . . . . . . . 1 1 . . Special Weapon 2 | . . 1 . . . . . . . . . . . 1 . . Impact Weapon . | . . . . . . . . . . . . . . . . . Slashing Weapon 1 | . . . . . . . . . . . . . . 1 . . Piercing Weapon . | . . . . . . . . . . . . . . . . . Special Melee Weapon . | . . . . . . . . . . . . . . . . . Unidentified Prototypes 3 | . . 1 . . . . . . 1 . . . . 1 . . Corrupted Parts 2 | . . . . . . . . . . . . . 2 . . . System Corruption 14 | . . . . . . . . . . . . . 14 . . . Parts Lost 28 | . . . 1 1 . 4 . . . . . . 1 20 . 1 Power 2 | . . . . . . . . . . . . . . 2 . . Propulsion 7 | . . . . . . 3 . . . . . . . 4 . . Utility 12 | . . . 1 1 . 1 . . . . . . 1 8 . . Weapon 7 | . . . . . . . . . . . . . . 6 . 1 Highest Loss Streak 12 | . . . 1 1 . 4 . . . . . . 1 12 . 1 To Critical Strikes . | . . . . . . . . . . . . . . . . . Average Backups 20 | 1 5 12 23 24 25 22 20 21 24 25 25 25 25 23 5 5 Power . | . 1 1 1 . . . . . . 1 1 1 1 . . . Propulsion 1 | . 1 1 2 3 3 1 . . 1 2 2 2 2 1 . . Utility 10 | . 2 3 13 12 11 10 10 10 12 13 13 13 13 13 4 4 Weapon 8 | . 1 6 6 9 11 11 10 11 10 9 9 9 8 7 1 1 Tool/Special . | . . . . . . . . . . . . . . . . . Unused Backups 32 | . 2 7 7 1 1 . . . 1 . . . 1 9 1 2 Power 3 | . . 3 . . . . . . . . . . . . . . Propulsion 1 | . . . 1 . . . . . . . . . . . . . Utility 15 | . . 1 3 1 . . . . . . . . . 7 1 2 Weapon 12 | . 2 3 3 . 1 . . . 1 . . . 1 1 . . Tool/Special 1 | . . . . . . . . . . . . . . 1 . . Average Slot Usage (%) 95 | . 99 98 95 99 100 99 99 100 99 100 100 82 99 89 12 20 Engine 12 | . 14 11 9 15 15 15 15 15 13 13 13 13 13 8 . . Treads 21 | . 27 21 27 23 23 22 23 23 19 20 20 20 20 17 . . Device 16 | . 14 21 18 22 11 13 . 14 15 19 20 20 20 20 1 3 Storage 7 | . 14 11 9 7 7 7 7 7 6 6 6 6 6 4 . . Processor 11 | . . . . 6 22 23 23 23 20 20 20 20 19 10 5 10 Protection 5 | . . 10 14 7 3 1 14 . 3 . . . . 4 . . Energy Cannon 13 | . . 4 14 14 15 15 14 15 20 20 20 2 18 15 . . Ballistic Cannon 2 | . 10 15 2 . . . . . . . . . . . . . Peak Build Rating 88 | 7 10 16 31 40 45 43 43 43 62 59 58 58 60 88 12 14 Average Rating 42 | 5 8 14 26 36 41 40 42 40 53 57 58 45 57 78 9 13 On Entrance 34 | . 7 10 16 31 40 43 40 43 40 57 58 58 58 58 12 9 Avg Prop Armor Cover (%) 4 | . . . . . . . . . . . . . . 4 . . Naked Turns 24 | . . . . . . . . . . . . . . 24 . . Heaviest Build 155 | 13 19 41 121 127 121 120 125 125 128 126 126 126 132 155 4 4 Greatest Support 125 | 40 40 40 62 62 62 62 62 62 72 72 72 72 73 125 3 3 Greatest Overweight (x) 6 | 1 . 1 1 2 1 1 2 2 6 1 1 1 1 2 1 1 Average Overweight (x) . | . . . . 1 1 1 1 1 1 1 1 1 1 . . . Largest Inventory Capacity 25 | 8 8 15 25 25 25 25 25 25 25 25 25 25 25 25 5 5 Average Capacity 22 | 7 8 13 24 25 25 25 25 25 25 25 25 25 25 24 5 5 Most Carried 25 | 3 8 15 25 25 25 25 21 22 25 25 25 25 25 25 5 5 Average Carried 21 | 1 5 12 23 24 25 22 20 21 24 25 25 25 24 23 4 5 Final Capacity 25 | 8 8 15 25 25 25 25 25 25 25 25 25 25 25 5 5 5 Final Carried 25 | 3 8 15 25 25 25 21 21 22 25 25 25 25 25 5 5 5 Class Distribution -------------------- 32% | Scavenger-Mutant 31% | Mutant 16% | Skirmisher 11% | Tank 4% | Scavenger-Tank Dominant Class ---------------- Mutant | -10/Materials Scavenger-Mutant | -9/Materials Mutant | -8/Materials Mutant | -7/Factory Scavenger-Mutant | -7/Lower Caves Scavenger-Mutant | -7/Lower Caves Mutant | -7/Zion Scavenger-Mutant | -6/Proximity Caves Skirmisher | -6/Factory Skirmisher | -6/Lower Caves Skirmisher | -6/Lower Caves Mutant | -6/Data Miner Skirmisher | -5/Proximity Caves Tank | -5/Factory Mutant | -5/Upper Caves Mutant | -5/Upper Caves Resources | -11 -10 -9 -8 -7 -7 -7 -7 -6 -6 -6 -6 -6 -5 -5 -5 -5 ----------- Run | Yrd Mat Mat Mat Fac Low Low Zio Pro Fac Low Low Dat Pro Fac Upp Upp Matter Collected 4180 | 312 335 758 555 217 146 60 68 60 170 174 6 . 412 783 . 124 Remotely . | . . . . . . . . . . . . . . . . . Salvage Created 10069 | 161 453 1354 1611 526 424 208 . 226 647 96 46 . 491 3802 . 24 Parts 445 | 15 27 69 58 36 16 6 . 12 24 5 . . 29 147 . 1 Haulers Intercepted 11 | . 2 2 4 . . . . . 1 . . . . 2 . . Recyclers Shooed 14 | . 2 1 3 1 . . . . 1 . . . . 6 . . Parts Field Recycled . | . . . . . . . . . . . . . . . . . Retrieved Matter . | . . . . . . . . . . . . . . . . . Parts Self-Destructed 56 | . . . . . 4 6 3 22 . 6 . . 15 . . . Prevented 14 | . . . . . . . . . . . 1 . 13 . . . Parts Restored . | . . . . . . . . . . . . . . . . . Kills | -11 -10 -9 -8 -7 -7 -7 -7 -6 -6 -6 -6 -6 -5 -5 -5 -5 ------- Run | Yrd Mat Mat Mat Fac Low Low Zio Pro Fac Low Low Dat Pro Fac Upp Upp Combat Hostiles Destroyed 179 | . 14 27 30 11 7 4 . 6 4 1 1 . 17 56 . 1 Melee 2 | . . . . . . . . . . . . . . 1 . 1 Guns 10 | . 10 . . . . . . . . . . . . . . . Cannons 115 | . 4 27 20 7 7 4 . 4 3 . 1 . 3 35 . . AOE 42 | . . . 9 4 . . . . . . . . 12 17 . . Classes Destroyed 21 | 2 4 5 . 3 1 . . 1 1 1 . . 1 2 . . Worker 22 | . 1 2 2 4 . . . . 1 . . . . 12 . . Builder 14 | . . 3 2 1 . . . . 1 . . . . 7 . . Tunneler 5 | 4 . . . . . . . . . . . . . 1 . . Hauler 11 | . 2 2 4 . . . . . 1 . . . . 2 . . Recycler 15 | 1 . 5 2 . . . . . 2 . . . . 5 . . Minesweeper 2 | . . . . . . . . . . 1 . . 1 . . . Mechanic 1 | . . . . . . . . . 1 . . . . . . . Watcher 9 | . . 1 2 1 . . . . . . . . . 5 . . Swarmer 31 | . 5 4 3 . . . . 3 . . . . 12 3 . 1 Grunt 78 | . 9 15 20 3 . 4 . 1 1 . 1 . . 24 . . Brawler 3 | . . 1 . . . . . . . . . . . 2 . . Duelist 3 | . . 1 2 . . . . . . . . . . . . . Protector 3 | . . . . 1 . . . . . . . . 1 1 . . Sentry 20 | . . 6 5 1 1 . . . . 1 . . 1 5 . . Demolisher 1 | . . . . . . . . . . . . . 1 . . . Specialist 2 | . . . . . . . . . . . . . . 2 . . Hunter 11 | . . . . 1 . . . . 1 . . . 2 7 . . Programmer 20 | . . . . 5 1 . . 1 2 . . . . 11 . . Heavy 2 | . . . . . . . . . . . . . . 2 . . Behemoth 1 | . . . . . . . . 1 . . . . . . . . Thug 4 | . . . . . 4 . . . . . . . . . . . Mutant 1 | . . . . . 1 . . . . . . . . . . . Best Kill Streak 20 | 5 3 7 6 5 4 2 . 2 6 1 1 . 4 20 . 1 Combat Bots Only 10 | . 3 7 5 5 4 2 . 2 1 1 1 . 4 10 . 1 Max Kills in Single Turn 6 | 2 1 2 6 2 1 1 . 1 2 1 1 . 4 4 . 1 Gunslinging . | . . . . . . . . . . . . . . . . . Exploded 4 | . . . 3 2 . . . . . . . . 4 3 . . Melee 1 | . . . . . . . . . . . . . . 1 . 1 Uniques/NPCs Destroyed . | . . . . . . . . . . . . . . . . . Combat | -11 -10 -9 -8 -7 -7 -7 -7 -6 -6 -6 -6 -6 -5 -5 -5 -5 -------- Run | Yrd Mat Mat Mat Fac Low Low Zio Pro Fac Low Low Dat Pro Fac Upp Upp Hostile Shots Fired 887 | . 56 76 101 69 55 51 . 7 13 24 . . 35 367 8 25 Missed 252 | . 11 19 23 19 20 9 . 4 5 12 . . 9 114 3 4 Hits 635 | . 45 57 78 50 35 42 . 3 8 12 . . 26 253 5 21 Melee 4 | . . 1 3 . . . . . . . . . . . . . Projectile 631 | . 45 56 75 50 35 42 . 3 8 12 . . 26 253 5 21 AOE 6 | . . . . . . . . . . . . . 6 . . . Critical Strikes 21 | . 1 . 3 4 1 3 . . . . . . . 9 . . Part Disruptions 2 | . . . . . . . . . . . . . . 2 . . Damage Taken 10247 | . 535 693 1241 521 487 626 . 69 141 100 . . 431 4983 97 323 Core 1549 | . 57 53 106 91 57 117 . 18 . 20 . . 16 659 59 296 Absorbed by Shields 941 | . . . 28 237 . 61 . . . . . . 161 454 . . Reduced by Siege Mode 31 | . . . . . . . . . . . . . . 31 . . Regen/Repaired (Parts) 758 | . 125 46 77 . . . 510 . . . . . . . . . Core Remaining (%) 82 | 100 77 86 80 . . . . 59 . . . . 95 . . . Volleys Fired 543 | 7 49 119 88 32 26 18 . 13 22 9 2 . 24 134 . . Largest 3 | 2 2 2 2 2 2 2 . 2 3 3 3 . 3 3 . . Hottest 270 | 40 66 101 150 145 145 160 . 160 245 255 255 . 229 270 . . Shots Fired 1139 | 14 98 185 164 65 51 36 . 26 64 25 6 . 57 348 . . Gun 92 | 14 72 . 6 . . . . . . . . . . . . . Cannon 995 | . 26 176 150 61 51 36 . 26 64 25 6 . 49 325 . . Launcher 46 | . . 3 8 4 . . . . . . . . 8 23 . . Special 6 | . . 6 . . . . . . . . . . . . . . Kinetic 289 | 14 86 143 23 . . . . . . . . . . 23 . . Thermal 702 | . . 39 125 61 51 36 . 26 64 25 6 . 17 252 . . Explosive 46 | . . 3 8 4 . . . . . . . . 8 23 . . Electromagnetic 102 | . 12 . 8 . . . . . . . . . 32 50 . . Robot Hit Streak 24 | 5 13 15 13 24 20 10 . 10 13 8 3 . 7 20 . . Robot Miss Streak 5 | 2 3 3 4 2 2 2 . 1 1 2 1 . 2 5 . . Penetration Max . | . . . . . . . . . . . . . . . . . Secondary Targets 2 | . 2 . . . . . . . . . . . . . . . Max Gunslinging Chain 1 | . 1 . . . . . . . . . . . . . . . Shots Hit Robots 746 | 9 74 90 107 45 41 27 . 20 39 17 5 . 37 234 . 1 Core Hits 429 | 7 26 45 71 25 14 7 . 8 12 3 1 . 26 183 . 1 Critical Kills 6 | 1 . . 1 . . . . 1 . 1 . . . 2 . . Critical Parts Destroyed . | . . . . . . . . . . . . . . . . . Critical Strikes 12 | 1 1 2 1 . . . . 1 . 1 . . 1 4 . . Meltdown 5 | . . . 1 . . . . 1 . 1 . . . 2 . . Destroy 1 | 1 . . . . . . . . . . . . . . . . Blast 4 | . 1 2 . . . . . . . . . . . 1 . . Corrupt 2 | . . . . . . . . . . . . . 1 1 . . Melee Attacks 14 | . . . . . . . . . . . . . . 7 4 3 Impact . | . . . . . . . . . . . . . . . . . Slashing 14 | . . . . . . . . . . . . . . 7 4 3 Piercing . | . . . . . . . . . . . . . . . . . Sneak Attacks . | . . . . . . . . . . . . . . . . . Combat Hostiles . | . . . . . . . . . . . . . . . . . Follow-up Attacks . | . . . . . . . . . . . . . . . . . Damage Inflicted 28733 | 123 1177 2433 3436 1888 1077 685 . 568 1081 539 141 . 2039 13506 . 40 Guns 861 | 120 708 . 33 . . . . . . . . . . . . . Cannons 19006 | . 457 2029 2538 1125 1077 685 . 568 1071 539 141 . 965 7811 . . Explosions 8432 | . . 404 811 597 . . . . . . . . 1074 5546 . . Melee 40 | . . . . . . . . . . . . . . . . 40 Ramming 394 | 3 12 . 54 166 . . . . 10 . . . . 149 . . Kinetic 3483 | 120 1050 1549 286 . . . . . . . . . . 478 . . Thermal 15130 | . . 480 2154 1125 1077 685 . 568 1071 539 141 . 445 6845 . . Explosive 7438 | . . 404 811 597 . . . . . . . . 960 4666 . . Electromagnetic 2248 | . 115 . 131 . . . . . . . . . 634 1368 . . Impact . | . . . . . . . . . . . . . . . . . Slashing 40 | . . . . . . . . . . . . . . . . 40 Piercing . | . . . . . . . . . . . . . . . . . Highest Corruption 16 | . . 2 . 2 2 2 2 . 1 2 2 2 16 10 10 10 Average Corruption 3 | . . 2 . 1 2 2 2 . 1 1 2 2 2 7 10 10 Corruption Purged . | . . . . . . . . . . . . . . . . . Corruption Blocked . | . . . . . . . . . . . . . . . . . Effects 192 | . . 6 . 11 9 9 2 . 9 10 6 5 24 92 5 4 Message Errors 44 | . . 2 . 1 2 3 . . 4 7 1 1 8 13 2 . Matter Fused 42 | . . 1 . 3 1 1 . . 3 2 2 3 7 13 2 4 Heat Flow Errors 18 | . . . . 3 . 1 1 . . . . . 2 10 1 . Energy Discharges 19 | . . 1 . 1 4 1 1 . 2 . 1 1 3 4 . . Parts Rejected 8 | . . 1 . . . 1 . . . . . . 1 5 . . Parts Fused 1 | . . . . . 1 . . . . . . . . . . . Data Loss (minor) 23 | . . 1 . 1 . 1 . . . . 1 . 1 18 . . Data Loss (major) 5 | . . . . 1 . . . . . 1 1 . . 2 . . Misfires 12 | . . . . 1 . . . . . . . . 1 10 . . Alerts 5 | . . . . . 1 1 . . . . . . 1 2 . . Misdirections 2 | . . . . . . . . . . . . . . 2 . . Weapon Failures 13 | . . . . . . . . . . . . . . 13 . . Overload Shots . | . . . . . . . . . . . . . . . . . Overflow Damage 707 | . 1 85 62 64 22 11 . 10 35 49 . . 76 292 . . Projectiles 303 | . 1 17 20 53 22 11 . 10 35 49 . . 9 76 . . Explosions 392 | . . 68 41 . . . . . . . . . 67 216 . . Melee 12 | . . . 1 11 . . . . . . . . . . . . Knockbacks 34 | . 3 18 2 . . . . . 1 . . . . 10 . . Impact 4 | . 1 . 1 . . . . . 1 . . . . 1 . . Kinetic 29 | . 2 18 1 . . . . . . . . . . 8 . . Secondary 1 | . . . . . . . . . . . . . . 1 . . Self-Inflicted Damage 592 | . . 62 . 118 . . . . . . . . . 412 . . Shots 14 | . . 1 . 4 . . . . . . . . . 9 . . Rammed 33 | 1 4 . 7 8 . . . . 1 . . . . 12 . . Targets Rammed 37 | 1 5 . 7 10 . . . . 1 . . . . 13 . . Kicked . | . . . . . . . . . . . . . . . . . Crushed 4 | . 1 . . 2 . . . . . . . . . 1 . . Highest Temperature 436 | . 30 54 303 236 109 299 172 96 243 180 96 . 197 436 74 . Average Temperature 76 | . 11 17 81 46 55 153 95 17 62 73 52 . 30 114 54 . Received Heat Transfer 2520 | . 255 198 637 92 239 388 . 18 18 18 . . . 618 39 . Effects 8 | . . . 1 . . 1 . . . . . . . 6 . . Shutdowns 1 | . . . . . . . . . . . . . . 1 . . Energy Bleed 2 | . . . . . . 1 . . . . . . . 1 . . Interference 4 | . . . 1 . . . . . . . . . . 3 . . Damage (minor) 1 | . . . . . . . . . . . . . . 1 . . Siege Activations 5 | . . . . . . . . . . . . . . 5 . . Total Turns 120 | . . . . . . . . . . . . . . 120 . . Longest Duration 39 | . . . . . . . . . . . . . . 39 . . Martial Activations . | . . . . . . . . . . . . . . . . . Shielding Activations . | . . . . . . . . . . . . . . . . . Robots Disrupted 2 | . . . . . . . . . . . . . . 2 . . Combat Hostiles 1 | . . . . . . . . . . . . . . 1 . . Robots Corrupted 4 | . . . 1 . . . . . . . . . 2 1 . . Combat Hostiles 3 | . . . . . . . . . . . . . 2 1 . . Parts Fried 12 | . . . 1 . . . . . . . . . 7 4 . . Impact Corruptions 2 | . . . 1 1 . . . . . . . . . . . . Robots Melted 8 | . . . 1 . . . . 2 2 1 . . . 2 . . Combat Hostiles 7 | . . . 1 . . . . 2 1 1 . . . 2 . . Parts Melted 51 | . . 1 3 5 1 3 . 4 8 3 1 . . 22 . . Heat Transferred 20148 | . . 814 3219 1751 1816 1350 . 1050 2037 785 224 . 535 6567 . . Parts Sabotaged . | . . . . . . . . . . . . . . . . . Parts Stolen . | . . . . . . . . . . . . . . . . . Parts Stripped . | . . . . . . . . . . . . . . . . . Power Chain Reactions 5 | . . . . . . . . . . . . . 2 3 . . Alert | -11 -10 -9 -8 -7 -7 -7 -7 -6 -6 -6 -6 -6 -5 -5 -5 -5 ------- Run | Yrd Mat Mat Mat Fac Low Low Zio Pro Fac Low Low Dat Pro Fac Upp Upp Maximum Alert Level 5 | . . 2 2 . . . . . . . . . . 5 . . Low Security (%) 67 | 100 100 61 45 100 . . . . 100 . . . . 45 . . Level 1 16 | . . 29 49 . . . . . . . . . . 4 . . Level 2 4 | . . 8 5 . . . . . . . . . . 6 . . Level 3 7 | . . . . . . . . . . . . . . 28 . . Level 4 1 | . . . . . . . . . . . . . . 6 . . Level 5 2 | . . . . . . . . . . . . . . 8 . . High Security . | . . . . . . . . . . . . . . . . . Max Security . | . . . . . . . . . . . . . . . . . Peak Influence 1985 | 15 119 497 447 162 . . . . 47 . . . . 1985 . . Initial 150 | . . . 150 63 . . . . 3 . . . . 42 . . Average 237 | 3 36 151 232 47 . . . . 6 . . . . 568 . . Influence Increases 6643 | 25 419 949 956 364 50 105 . 387 189 25 35 . 370 2599 90 80 Destroy 0b10 Robot/C 3580 | . 280 540 600 200 40 80 . 280 80 20 20 . 320 1100 . 20 Destroy 0b10 Robot/NC 410 | 25 15 65 60 35 . . . . 30 5 . . 10 165 . . Destroy Leader 740 | . 54 126 122 52 10 10 . 50 32 . . . 40 244 . . Allied During Kill 59 | . . . . . . . . 57 2 . . . . . . . Successful Hack 180 | . 24 54 21 54 . . . . 8 . . . . 19 . . Disable Machine 465 | . . 60 15 . . . . . 30 . . . . 360 . . Destroy Structure 789 | . 1 74 78 23 . . . . 7 . . . . 606 . . Partial Spotted 30 | . . 15 . . . . . . . . . . . 15 . . Lose Combat Pursuer 390 | . 45 15 60 . . 15 . . . . 15 . . 90 90 60 Influence Decreases 5629 | 25 419 592 1173 380 174 105 . 381 195 25 35 . 302 687 793 343 Entered New Map 1336 | . . . 207 77 47 . . . 3 . . . . 26 733 243 Time Decay 3486 | 25 369 442 656 303 127 85 . 347 189 25 35 . 292 441 60 90 Lost Part 250 | . . . 10 . . 20 . . . . . . 10 200 . 10 Lost Ally 57 | . . . . . . . . 34 3 . . . . 20 . . Purge Threat 500 | . 50 150 300 . . . . . . . . . . . . . Squads Dispatched 38 | . 3 4 3 4 . . . . 4 . . . . 20 . . Investigation 6 | . 2 2 1 . . . . . . . . . . 1 . . Extermination 10 | . . . . 3 . . . . 2 . . . . 5 . . Reinforcement 15 | . 1 2 2 1 . . . . 2 . . . . 7 . . Assault 4 | . . . . . . . . . . . . . . 4 . . Garrison 3 | . . . . . . . . . . . . . . 3 . . Intercept . | . . . . . . . . . . . . . . . . . Searches Triggered . | . . . . . . . . . . . . . . . . . Data Miner Redirects 2 | . . . . . . . . . . . . . . 2 . . Construction Impeded 6 | . . 1 . 1 . . . . . . . . . 4 . . Haulers Reinforced 1 | . . . . . . . . . 1 . . . . . . . Active Scanning Responses . | . . . . . . . . . . . . . . . . . Cargo Convoy Interrupts 1 | . . . . 1 . . . . . . . . . . . . Stealth | -11 -10 -9 -8 -7 -7 -7 -7 -6 -6 -6 -6 -6 -5 -5 -5 -5 --------- Run | Yrd Mat Mat Mat Fac Low Low Zio Pro Fac Low Low Dat Pro Fac Upp Upp Distress Signals 37 | . . 5 4 2 . . . . . . . . 21 5 . . Communications Jammed . | . . . . . . . . . . . . . . . . . Distress Signals . | . . . . . . . . . . . . . . . . . Times Spotted 284 | . 25 36 43 19 7 5 . 13 5 2 1 . 20 94 6 8 Peak Tracking Total 7 | . 3 5 6 5 4 4 . 3 1 1 2 . 4 7 3 5 Tactical Retreats 16 | . 1 1 3 . . 1 . . . . 1 . . 5 3 1 Traps | -11 -10 -9 -8 -7 -7 -7 -7 -6 -6 -6 -6 -6 -5 -5 -5 -5 ------- Run | Yrd Mat Mat Mat Fac Low Low Zio Pro Fac Low Low Dat Pro Fac Upp Upp Traps Triggered 6 | . 2 1 1 . . . . . . . . . . 2 . . Indirectly . | . . . . . . . . . . . . . . . . . Trap Hack Attempts . | . . . . . . . . . . . . . . . . . Triggered . | . . . . . . . . . . . . . . . . . Disarmed . | . . . . . . . . . . . . . . . . . Reprogrammed . | . . . . . . . . . . . . . . . . . Reused . | . . . . . . . . . . . . . . . . . Traps Extracted . | . . . . . . . . . . . . . . . . . Installed . | . . . . . . . . . . . . . . . . . Triggered . | . . . . . . . . . . . . . . . . . Machines | -11 -10 -9 -8 -7 -7 -7 -7 -6 -6 -6 -6 -6 -5 -5 -5 -5 ---------- Run | Yrd Mat Mat Mat Fac Low Low Zio Pro Fac Low Low Dat Pro Fac Upp Upp Machines Disabled 32 | . . 4 1 . 1 . . . 2 . . . . 24 . . Max in Single Turn 4 | . . 2 1 . 1 . . . 1 . . . . 4 . . Garrison Access 2 | . . . . 2 . . . . . . . . . . . . Machines Repaired . | . . . . . . . . . . . . . . . . . Machines Dismantled . | . . . . . . . . . . . . . . . . . Machines Sabotaged . | . . . . . . . . . . . . . . . . . Overloaded Fab Kills . | . . . . . . . . . . . . . . . . . Hacking | -11 -10 -9 -8 -7 -7 -7 -7 -6 -6 -6 -6 -6 -5 -5 -5 -5 --------- Run | Yrd Mat Mat Mat Fac Low Low Zio Pro Fac Low Low Dat Pro Fac Upp Upp Machines Accessed 48 | . 7 12 6 10 . . 1 . 3 . . 4 . 5 . . Terminals 27 | . 6 10 4 4 . . . . 1 . . . . 2 . . Fabricators 4 | . . . . 2 . . . . 1 . . . . 1 . . Repair Stations 5 | . 1 1 1 1 . . . . . . . . . 1 . . Recycling Units . | . . . . . . . . . . . . . . . . . Scanalyzers 4 | . . 1 1 1 . . . . 1 . . . . . . . Garrison Access 3 | . . . . 2 . . . . . . . . . 1 . . Total Hacks 172 | . 25 49 21 23 . . 4 . 4 . . 33 . 13 . . Successful 105 | . 15 26 11 10 . . 4 . 2 . . 33 . 4 . . Failed 66 | . 10 23 10 12 . . . . 2 . . . . 9 . . Catastrophic 9 | . 1 1 . 2 . . . . 2 . . . . 3 . . Database Lockouts 1 | . . . . 1 . . . . . . . . . . . . Manual 49 | . 11 24 4 5 . . . . 3 . . . . 2 . . Terminals 91 | . 21 39 16 7 . . . . 1 . . . . 7 . . Fabricators 8 | . . . . 4 . . . . 2 . . . . 2 . . Repair Stations 12 | . 4 2 2 2 . . . . . . . . . 2 . . Recycling Units . | . . . . . . . . . . . . . . . . . Scanalyzers 17 | . . 8 3 5 . . . . 1 . . . . . . . Garrison Access 7 | . . . . 5 . . . . . . . . . 2 . . Terminal Hacks 73 | . 10 15 6 3 . . 4 . . . . 33 . 2 . . Record 11 | . . . . . . . . . . . . 11 . . . . Part Schematic 16 | . . . . . . . 4 . . . . 12 . . . . Robot Schematic 7 | . . . . . . . . . . . . 7 . . . . Robot Analysis 6 | . 2 2 . 1 . . . . . . . . . 1 . . Prototype ID Bank 7 | . 2 2 . . . . . . . . . 3 . . . . Level Access Points 1 | . . 1 . . . . . . . . . . . . . . Branch Access Points 2 | . 1 . . . . . . . . . . . . 1 . . Emergency Access Points 1 | . . 1 . . . . . . . . . . . . . . Machine Index 1 | . . 1 . . . . . . . . . . . . . . Fabricator Index 1 | . . . . 1 . . . . . . . . . . . . Alert Level 6 | . 1 2 2 1 . . . . . . . . . . . . Unreport Threat 5 | . 2 1 2 . . . . . . . . . . . . . Locate Traps 3 | . 1 1 1 . . . . . . . . . . . . . Hauler Manifests 4 | . 1 2 1 . . . . . . . . . . . . . Registered Prototypes 1 | . . 1 . . . . . . . . . . . . . . Zone Layout 1 | . . 1 . . . . . . . . . . . . . . Fabricator Hacks . | . . . . . . . . . . . . . . . . . Repair Station Hacks 9 | . 3 2 2 1 . . . . . . . . . 1 . . Scan Component 6 | . 2 1 1 1 . . . . . . . . . 1 . . Repair 3 | . 1 1 1 . . . . . . . . . . . . . Recycling Unit Hacks . | . . . . . . . . . . . . . . . . . Scanalyzer 12 | . . 6 3 3 . . . . . . . . . . . . Insert Component 2 | . . 2 . . . . . . . . . . . . . . Analyze 2 | . . 2 . . . . . . . . . . . . . . Retrieve Study 8 | . . 2 3 3 . . . . . . . . . . . . Garrison Access Hacks 2 | . . . . 2 . . . . . . . . . . . . Seal Access 2 | . . . . 2 . . . . . . . . . . . . Unauthorized Hacks 9 | . 2 3 . 1 . . . . 2 . . . . 1 . . Terminals 5 | . 2 3 . . . . . . . . . . . . . . Botnet 4 | . 2 2 . . . . . . . . . . . . . . Operators 1 | . . 1 . . . . . . . . . . . . . . Fabricators 4 | . . . . 1 . . . . 2 . . . . 1 . . Fabnet 1 | . . . . . . . . . 1 . . . . . . . Haulers 3 | . . . . 1 . . . . 1 . . . . 1 . . Repair Stations . | . . . . . . . . . . . . . . . . . Recycling Units . | . . . . . . . . . . . . . . . . . Scanalyzers . | . . . . . . . . . . . . . . . . . Garrison Access . | . . . . . . . . . . . . . . . . . Data Cores Recovered . | . . . . . . . . . . . . . . . . . Used . | . . . . . . . . . . . . . . . . . Hacking Detections 39 | . 6 11 5 10 . . . . 2 . . . . 5 . . Full Trace Events 5 | . 1 2 1 . . . . . . . . . . 1 . . Feedback Events . | . . . . . . . . . . . . . . . . . Feedback Blocked . | . . . . . . . . . . . . . . . . . Robot Schematics Acquired 10 | . . . . . . . 3 . . . . 7 . . . . Robots Built . | . . . . . . . . . . . . . . . . . Authchips . | . . . . . . . . . . . . . . . . . Time . | . . . . . . . . . . . . . . . . . Total Robot Build Rating . | . . . . . . . . . . . . . . . . . Part Schematics Acquired 32 | . . 2 . . . . 18 . . . . 12 . . . . Parts Built . | . . . . . . . . . . . . . . . . . Authchips . | . . . . . . . . . . . . . . . . . Time . | . . . . . . . . . . . . . . . . . Total Part Build Rating . | . . . . . . . . . . . . . . . . . Part Studies Acquired 8 | . . 2 3 3 . . . . . . . . . . . . Parts Repaired 3 | . 1 1 1 . . . . . . . . . . . . . Time 103 | . 26 26 51 . . . . . . . . . . . . . Parts Recycled . | . . . . . . . . . . . . . . . . . Recycled Matter . | . . . . . . . . . . . . . . . . . Retrieved Matter . | . . . . . . . . . . . . . . . . . Retrieved Components . | . . . . . . . . . . . . . . . . . Parts Scanalyzed 2 | . . 2 . . . . . . . . . . . . . . Part Schematics Acquired 2 | . . 2 . . . . . . . . . . . . . . Parts Damaged . | . . . . . . . . . . . . . . . . . Bothacking | -11 -10 -9 -8 -7 -7 -7 -7 -6 -6 -6 -6 -6 -5 -5 -5 -5 ------------ Run | Yrd Mat Mat Mat Fac Low Low Zio Pro Fac Low Low Dat Pro Fac Upp Upp Used RIF Installer . | . . . . . . . . . . . . . . . . . Robots Hacked 2 | . . . . . . . . . . . . . . 2 . . Non-combat . | . . . . . . . . . . . . . . . . . Combat 2 | . . . . . . . . . . . . . . 2 . . Robot Hacks Applied . | . . . . . . . . . . . . . . . . . Relay Couplers Released . | . . . . . . . . . . . . . . . . . Fabnet Peak Effective % 3 | . . . . . . . . . . . . . 3 3 3 3 Autooverrided 2 | . . . . . . . . . . . . . . 2 . . Robots Rewired . | . . . . . . . . . . . . . . . . . Allies Hacked . | . . . . . . . . . . . . . . . . . Hacks Repelled . | . . . . . . . . . . . . . . . . . Allies | -11 -10 -9 -8 -7 -7 -7 -7 -6 -6 -6 -6 -6 -5 -5 -5 -5 -------- Run | Yrd Mat Mat Mat Fac Low Low Zio Pro Fac Low Low Dat Pro Fac Upp Upp Total Allies 6 | . . . . . . . 4 . . . . . . 2 . . Largest Group 4 | . . . . . . . 4 4 1 . . . . 1 . . Highest-Rated Group 95 | . . . . . . . 95 95 39 . . . . 54 . . Highest-Rated Ally 54 | . . . . . . . 39 39 39 . . . . 54 . . Total Orders . | . . . . . . . . . . . . . . . . . Ally Attacks 54 | . . . . . . . . 46 5 . . . . 3 . . Total Damage 620 | . . . . . . . . 568 14 . . . . 38 . . Kills 8 | . . . . . . . . 8 . . . . . . . . Allies Corrupted . | . . . . . . . . . . . . . . . . . Allies Melted . | . . . . . . . . . . . . . . . . . Intel | -11 -10 -9 -8 -7 -7 -7 -7 -6 -6 -6 -6 -6 -5 -5 -5 -5 ------- Run | Yrd Mat Mat Mat Fac Low Low Zio Pro Fac Low Low Dat Pro Fac Upp Upp Active Infowar (turns) 20641 | 22 1145 2573 2355 1781 837 710 1643 1567 1305 1146 418 194 1416 3355 34 140 Optics 12580 | . . . . . 835 710 1643 1567 1305 1146 418 194 1416 3346 . . Sensors 3690 | . . . . . . . . . 905 1132 418 194 998 9 34 . Seismic 14233 | 22 1145 2573 2355 1781 572 583 45 1492 211 . . . . 3314 . 140 Robot Analysis Total 6 | . 2 2 . 1 . . . . . . . . . 1 . . Derelict Logs Recovered 9 | . . . . . 1 1 . 1 . 1 1 . 2 . 1 1 Drone Launches . | . . . . . . . . . . . . . . . . . Drone Recoveries . | . . . . . . . . . . . . . . . . . Exploration | -11 -10 -9 -8 -7 -7 -7 -7 -6 -6 -6 -6 -6 -5 -5 -5 -5 ------------- Run | Yrd Mat Mat Mat Fac Low Low Zio Pro Fac Low Low Dat Pro Fac Upp Upp Turns Passed 21060 | 104 1145 2573 2450 1804 837 710 1643 1567 1305 1146 418 194 1416 3431 133 184 Spaces Moved 8673 | 46 562 938 844 757 372 314 706 629 515 471 197 91 579 1245 215 192 Core 528 | 7 . . . . . . . . . . . . . 114 215 192 Treads 8145 | 39 562 938 844 757 372 314 706 629 515 471 197 91 579 1131 . . Legs . | . . . . . . . . . . . . . . . . . Wheels . | . . . . . . . . . . . . . . . . . Hover . | . . . . . . . . . . . . . . . . . Flight . | . . . . . . . . . . . . . . . . . Fastest Speed 50 | 50 160 160 160 195 195 195 195 195 208 208 208 208 208 50 50 50 Average Speed 203 | 145 160 212 233 215 195 195 230 195 224 208 208 208 208 215 56 85 Slowest Speed 400 | 160 160 240 240 315 195 195 235 235 400 208 208 208 226 285 100 100 Overloaded Moves . | . . . . . . . . . . . . . . . . . Propulsion Burnouts . | . . . . . . . . . . . . . . . . . Robots Hopped . | . . . . . . . . . . . . . . . . . Potential Cave-ins 6 | . . . . . . . . . . . . . . 4 2 . Cave-ins Triggered . | . . . . . . . . . . . . . . . . . Exploration Rate (%) 52 | 4 89 67 59 23 51 52 81 84 16 65 48 74 71 39 52 25 Regions Visited 16 Branch Regions 10 Pre-discovered Areas 3 | . . . . . . . 1 . . . . 1 . . . 1 Known Exits Taken 11 | . . 1 . . 1 1 1 1 1 1 1 1 . 1 1 . Unknown Exits Taken 5 | 1 1 . 1 1 . . . . . . . . 1 . . . Scrap Searched 14 | . . . . . 3 1 2 2 . 1 1 . 2 . . 2 Spaces Dug 89 | . . 6 6 4 . . . . 2 . . . 12 55 4 . Terrain Destroyed 624 | . 1 81 74 29 . . . . 4 5 1 . 57 368 4 . Melee 10 | . . . . . . . . . . . . . . 6 4 . Projectile 123 | . 1 11 27 6 . . . . 4 5 1 . 1 67 . . AOE 491 | . . 70 47 23 . . . . . . . . 56 295 . . Terrain Rammed . | . . . . . . . . . . . . . . . . . Walls Destroyed . | . . . . . . . . . . . . . . . . . Machines Disabled . | . . . . . . . . . . . . . . . . . Actions | -11 -10 -9 -8 -7 -7 -7 -7 -6 -6 -6 -6 -6 -5 -5 -5 -5 --------- Run | Yrd Mat Mat Mat Fac Low Low Zio Pro Fac Low Low Dat Pro Fac Upp Upp Total 10956 | 65 711 1331 1157 857 434 374 722 940 618 618 201 96 741 1665 220 206 Wait 1267 | 2 72 220 135 24 15 35 5 292 46 135 3 . 111 164 . 8 Move 8658 | 46 561 937 843 756 371 313 705 628 514 470 196 90 578 1244 214 192 Hop . | . . . . . . . . . . . . . . . . . Pick Up 93 | 3 8 18 21 10 2 . 2 1 10 . . . 2 16 . . Fast Attach 56 | 7 4 6 6 . 1 1 2 . 4 . . 3 5 15 . 2 Attach 34 | . 1 2 3 5 . 4 2 . 2 . . . . 15 . . Detach 9 | . 2 1 3 . . . . . 1 . . . . 1 1 . Swap 125 | . 2 10 26 12 12 3 2 6 8 3 . . 14 27 . . Drop 117 | . 7 18 25 8 7 . 4 . 10 1 . 3 7 25 1 1 Fire 543 | 7 49 119 88 32 26 18 . 13 22 9 2 . 24 134 . . Melee 14 | . . . . . . . . . . . . . . 7 4 3 Ram . | . . . . . . . . . . . . . . . . . Kick . | . . . . . . . . . . . . . . . . . Crush 36 | . 5 . 7 10 . . . . 1 . . . . 13 . . Escape Stasis 4 | . . . . . . . . . . . . . . 4 . . Rewire . | . . . . . . . . . . . . . . . . . Trap . | . . . . . . . . . . . . . . . . . Miscellaneous . | . . . . . . . . . . . . . . . . . Route ------- -11/Scrapyard -10/Materials (discovered 5 exits: *Mat x2 / *Min x2 / [*Sub]) -9/Materials (discovered 3 exits: *Mat x3) -8/Materials -7/Factory -7/Lower Caves -7/Lower Caves -7/Zion -6/Proximity Caves -6/Factory (discovered 2 exits: *Low x2) -6/Lower Caves -6/Lower Caves -6/Data Miner -5/Proximity Caves -5/Factory (discovered 3 exits: [*Fac] / *Upp x2) -5/Upper Caves -5/Upper Caves History --------- Turn | Location | Event 7 | -11/Scrapyard | Discovered new exit (range 15) 105 | -11/Scrapyard | Entered Materials 315 | -10/Materials | Build established: Mutant 621 | -10/Materials | Discovered new exit (range 14) 747 | -10/Materials | Repaired Lgt. Treads 797 | -10/Materials | Discovered new exit (range 10) 904 | -10/Materials | Discovered new exit (range 7) 1055 | -10/Materials | Identified exit to Mines 1061 | -10/Materials | Discovered new exit (range 16) 1074 | -10/Materials | Discovered new exit (range 8) 1250 | -10/Materials | Entered another Materials area 1250 | -9/Materials | Evolved 2 slots: Utility x2 1686 | -9/Materials | Build established: Scavenger-Mutant 1731 | -9/Materials | Discovered new exit (range 7) 3147 | -9/Materials | Destroyed 7 combat bots 3278 | -9/Materials | Identified exit to Materials 3802 | -9/Materials | Repaired Lgt. Treads 3823 | -9/Materials | Entered another Materials area 3823 | -8/Materials | Evolved 2 slots: Propulsion x1, Utility x1 4545 | -8/Materials | Repaired Adv. Beam Cannon 5242 | -8/Materials | Build established: Mutant 6224 | -8/Materials | Discovered new exit (range 7) 6273 | -8/Materials | Entered Factory 6273 | -7/Factory | Evolved 2 slots: Power x1, Utility x1 6565 | -7/Factory | Discovered new exit (range 4) 7002 | -7/Factory | Central database locked down 7503 | -7/Factory | Cargo convoy interrupted 7589 | -7/Factory | Build established: Scavenger-Mutant 8077 | -7/Factory | Entered Lower Caves 8116 | -7/Lower Caves | Learned location of 1 exit from Factory 8209 | -7/Lower Caves | Attracted the attention of an 0b10 checkpoint 8507 | -7/Lower Caves | Ambushed by wild Derelicts 8807 | -7/Lower Caves | Discovered new exit (range 8) 8822 | -7/Lower Caves | Attacked by a delusional Derelict stockpiling parts 8912 | -7/Lower Caves | Identified exit to Lower Caves 8914 | -7/Lower Caves | Entered another Lower Caves area 8930 | -7/Lower Caves | Identified exit to Zion 9003 | -7/Lower Caves | Encountered a Warlord checkpoint 9232 | -7/Lower Caves | Lost 4 parts (3n1u) 9624 | -7/Lower Caves | Entered Zion 9660 | -7/Zion | Visited the Megawrench Repair Shop 9660 | -7/Zion | Megawrench repaired 11 parts 9737 | -7/Zion | System corruption cleaned by Quarantine Array 9960 | -7/Zion | Build established: Mutant 10080 | -7/Zion | Learned location of Recycling (-7) 10509 | -7/Zion | Given A8's code to call for help 10791 | -7/Zion | Learned Factory scanalyzer intel 11195 | -7/Zion | Gained Derelict followers 11219 | -7/Zion | Discovered new exit (range 12) 11263 | -7/Zion | Identified exit to Proximity Caves 11267 | -7/Zion | Entered Proximity Caves 11267 | -6/Proximity Caves | Accompanied by 4 allies 11390 | -6/Proximity Caves | Spotted B-75 Beast 11404 | -6/Proximity Caves | Destroyed B-75 Beast 11608 | -6/Proximity Caves | Received a Behemoth hack from an annoying Tinkerer 11742 | -6/Proximity Caves | Build established: Scavenger-Mutant 12123 | -6/Proximity Caves | Learned Factory trap positions 12791 | -6/Proximity Caves | Discovered new exit (range 19) 12824 | -6/Proximity Caves | Identified exit to Factory 12834 | -6/Proximity Caves | Entered Factory 12834 | -6/Factory | Accompanied by 1 ally 12834 | -6/Factory | Evolved 2 slots: Utility x1, Weapon x1 12835 | -6/Factory | Identified exit to Lower Caves 12836 | -6/Factory | Loaded intel: 100 trap records 12837 | -6/Factory | Loaded intel: 4 scanalyzer locations 13343 | -6/Factory | Build established: Skirmisher 13810 | -6/Factory | Discovered exit to Lower Caves (range 11) 14139 | -6/Factory | Entered Lower Caves 14299 | -6/Lower Caves | Learned Factory trap positions 14647 | -6/Lower Caves | Attracted the attention of an 0b10 checkpoint 14682 | -6/Lower Caves | Discovered new exit (range 18) 14740 | -6/Lower Caves | Identified exit to Lower Caves 15285 | -6/Lower Caves | Entered another Lower Caves area 15653 | -6/Lower Caves | Discovered new exit (range 6) 15665 | -6/Lower Caves | Identified exit to Data Miner 15703 | -6/Lower Caves | Entered Data Miner 15705 | -6/Data Miner | Discovered new exit (range 6) 15732 | -6/Data Miner | Met Data Miner 15780 | -6/Data Miner | Learned location of Section 7 (-2) 15780 | -6/Data Miner | Acquired the access code to Warlord's prototype stash 15815 | -6/Data Miner | Received God Mode back door access code from Data Miner 15895 | -6/Data Miner | Identified exit to Proximity Caves 15897 | -6/Data Miner | Entered Proximity Caves 16457 | -5/Proximity Caves | Learned Factory emergency access door positions 17195 | -5/Proximity Caves | Discovered new exit (range 20) 17295 | -5/Proximity Caves | System corruption reached 10% 17313 | -5/Proximity Caves | Entered Factory 17313 | -5/Factory | Evolved 2 slots: Propulsion x1, Utility x1 17314 | -5/Factory | Loaded intel: 112 trap records 17565 | -5/Factory | Build established: Scavenger-Tank 17601 | -5/Factory | Discovered new exit (range 5) 17959 | -5/Factory | Build established: Tank 18435 | -5/Factory | Garrison activated, responded to threat 19247 | -5/Factory | System corruption reached 10% 19354 | -5/Factory | Build established: Scavenger-Tank 19429 | -5/Factory | Identified exit to Upper Caves 19713 | -5/Factory | First assault squad dispatched 19734 | -5/Factory | Incoming assault squad redirected 19740 | -5/Factory | Incoming assault squad redirected 19816 | -5/Factory | Build established: Tank 20449 | -5/Factory | Garrison activated, responded to threat 20487 | -5/Factory | Destroyed 10 combat bots 20620 | -5/Factory | Garrison activated, responded to threat 20659 | -5/Factory | Released all parts (9) 20664 | -5/Factory | Core integrity fell below 50% 20694 | -5/Factory | Lost 12 parts (2p3n3u4w) 20744 | -5/Factory | Entered Upper Caves 20816 | -5/Upper Caves | Learned Factory emergency access door positions 20871 | -5/Upper Caves | Discovered new exit (range 13) 20876 | -5/Upper Caves | Identified exit to Upper Caves 20877 | -5/Upper Caves | Entered another Upper Caves area 20919 | -5/Upper Caves | Build established: Mutant 21049 | -5/Upper Caves | Core integrity fell below 20% 21061 | -5/Upper Caves | Destroyed by S-27 Virus with Autogun Last Messages --------------- 20895_ Acquired Seismic Detector. 20898_ Acquired Armor Integrity Analyzer. 20909_ Searching scrap... 20909_ Found Hpw. Shock Rifle. 20909_ Found 54 Matter. 20910_ Acquired 54 matter. 20911_ 97-QF4(k) breaks down the debris. 20918_ X9-N0T(k) breaks down the debris. 20946_ System corrupted: Matter fused (-9). 20969_ System corrupted: Matter fused (-10). 20987_ X9-N0T(k) breaks down the debris. 20991_ System corrupted: Matter fused (-8). 21002_ X9-N0T(k) breaks down the debris. 21009_ System corrupted: Matter fused (-7). 21031_ Acquired derelict log, extracted data. World map updated: -5/Factory. 21035_ Dropped Seismic Detector. 21052_ S-27 Virus destroyed. 21056_ Acquired 24 matter. 21059_ Power Sword destroyed. Map ----- +----------------------------------------------------+ | ????????????????????????????????? ???? | | ??????????? ????????????????????? ???? | | ????????? #???????? ??????????? ???? | | ????????? ???????? ???????????? ???? | | ????????? ##????? ????????????? ? ???? | | ?????????# ??? ? #???????##???# #? ?### | | ?????????# ??? ???????# ??## #?# ### | | ?????????? ????? ???????# ### #?# ## | | ?????????? ????? ???????# ## ### # | | ??????????# ?????? ??????## ## | | ?????????# ?????? #??????# | | #??????# ??????? ##?????# ### | | ????# ???????# #?????# #?## | | ### #???????# #?????# #??## | | ######### #?????# #???## | | # ###???# ## #????? | | # ! #???# #### ##????? | | ?????# ######### ###### #??## #?????? | | ?????# ????????## #???# #?????? | | ????# ??????????## #???# ##?????? | | ?? ???????????# ########???# #??????? | | ???????????## #??????????# #??????? | | ## ???????????# #?????????######??????? | | ?## ????????????### #???????### ##???????? | | ??## ??????????????# [#???????# ##??????? | | ???## ???????????????#@ #???????# #??????? | | ????# ???????????????# #???????# #??????? | | ???? ????????????????# s#?????### ##?????? | | ???? ???????????????##ss##????# ####??? | | ?????? ???????????????## ####?# #??? | | ???????????????????#### ### "" #??? | | ???????????????????# """" " #??? | | ???????????????????# "" "" #??? | | ???????????????????# ### ### ## """ #??? | | ???????????????????#####?# ### ### " " """ #??? | | ?????????????????????????# ## ### " "" #??? | | ????????????????????###### ##% "" #??? | | ???????????????????## ####### ### #####??? | | ??????????????????## #???# #??? | | ?????????????????## ##???# #??? | | ?????????????????# ###????# ####"" #??? | | ???????????#####?# ##?????# ###" " #??? | | ??????????## ### ##?#### "" " #??? | | ?????## ## ### ## """"" #??? | | ?????# ### """""" #??? | | ????# ## ####### #?# """""" #??? | | ????# ^ #????## ### ## """ " #??? | | ?????# #??## ## ### """ #??? | | ?????###### #??# #?# """""" #??? | | ??????????### #??# ## #?# ""### #??? | +----------------------------------------------------+ Best States ------------- Heat Dissipation 86 Energy Generation 31 Energy Capacity 480 Matter Stores 300 Matter Capacity 300 Sight Range 22 Robot Scan Range 16 Terrain Scan Density 10 Base Temperature (-) 100 Armor Coverage 1200 Resistance: EX 50 Evasion (%) 50 Targeting Accuracy 8 Armor Integrity Analysis 30 Recoil Reduction 4 Particle Charging 15 Item Schematics ----------------- Lgt. Treads | -9/Materials | Scanalyzed Seismic Detector | -9/Materials | Scanalyzed Riot Gun | -7/Zion | Free Battle Cannon | -7/Zion | Free Ripper | -7/Zion | Free Bore Cannon | -7/Zion | Free Drone Bay | -7/Zion | Archive Proton Missile Launcher | -7/Zion | Archive Adv. System Restoration Module | -7/Zion | Archive Great Axe | -7/Zion | Archive Lgt. Fission Core | -7/Zion | Archive Imp. Field Recycling Unit | -7/Zion | Archive Arm. Leg | -7/Zion | Archive Hrd. Heavy Armor Plating | -7/Zion | Archive Matter Compressor | -7/Zion | Archive Gatling Laser | -7/Zion | Archive Field Propulsion Drive | -7/Zion | Archive Imp. Carbon-fiber Leg | -7/Zion | Archive Powered Hammer | -7/Zion | Archive IFF Parser | -7/Zion | Archive Combat Drone Bay | -6/Data Miner | Free Lgt. Regenerative Plating | -6/Data Miner | Free Cld. Gravmag System | -6/Data Miner | Free Imp. Energy Well | -6/Data Miner | Free Ionic Axe | -6/Data Miner | Free Adv. VSS Leg | -6/Data Miner | Free Adv. Target Analyzer | -6/Data Miner | Free Micro-nuke Launcher | -6/Data Miner | Free Phase Gun | -6/Data Miner | Free Imp. Force Booster | -6/Data Miner | Free Biometal Leg | -6/Data Miner | Free Com. HERF Cannon | -6/Data Miner | Free Robot Schematics ------------------ O-24 Administrator | -7/Zion | Archive B-48 Gladiator | -7/Zion | Archive Y-54 Guardian | -7/Zion | Archive H-66 Slayer | -6/Data Miner | Free G-50 Soldier | -6/Data Miner | Free Y-64 Sentinel | -6/Data Miner | Free E-15 Imp | -6/Data Miner | Free A-15 Conveyor | -6/Data Miner | Free G-67 Veteran | -6/Data Miner | Free B-60 Warrior | -6/Data Miner | Free Fabricated ------------ Nothing Repaired ---------- Lgt. Treads | 10% | -10/Materials Lgt. Treads | 67% | -9/Materials Adv. Beam Cannon | 40% | -8/Materials Studied --------- Imp. Light Cannon | -9/Materials | Hacked Hvy. EM Pulse Gun | -9/Materials | Hacked Hvy. Particle Cannon | -8/Materials | Hacked Grenade Launcher | -8/Materials | Hacked Rocket Launcher | -8/Materials | Hacked Imp. Grenade Launcher | -7/Factory | Hacked Lgt. Treads | -7/Factory | Hacked Adv. Treads | -7/Factory | Hacked Alien Tech Used ----------------- None Achievements -------------- None Challenges ------------ None Game ------ Seed SiegeNetworkMantle Manual? 0 Play Time 02:03:56 Cumulative 290.2 hours Start 2026.01.17 @ 12:35:18 End 2026.01.17 @ 14:49:35 Sessions 1 Manual Loads 0 Difficulty Rogue Special Mode None Game No. 150 Rogue 150 Adventurer 0 Explorer 0 Win Type - Total 5 Types 5/0/0/0/0/0/0/0/0/0 Lore% 56 Gallery% 65 Achievement% 43 Wizard Run 0 Options --------- Layout 1 ASCII 0 Keyboard 0 Movement Numpad Keybinds 0 Fullscreen 1 Font 24/Smallcaps Map View 50x35 Zoom Use 0% Tactical HUD 1 Map Filters NONE Filters NONE Steam 1 RUN: 99e202f0-6493-4cec-b78b-ec0328abbc53